fUST/lending_fUST_20240819
["ID","MTS","AMOUNT","RATE_DAILY","PERIOD"]
[335276638,1724064654597,-500.0,0.00016712,2]
[335276639,1724064654606,-594.695822,0.00016712,2]
[335276640,1724064654615,-594.695822,0.00016712,2]
[335276641,1724064654625,-500.0,0.00016712,2]
[335276642,1724064654635,-1409.16,0.00016712,2]
[335276643,1724064654644,-967.54,0.00016712,2]
[335276644,1724064654654,-305.21264636,0.00016712,2]
[335276645,1724064654663,-594.695822,0.00016712,2]
[335276646,1724064654673,-5418.3,0.00016712,2]
[335276647,1724064654683,-594.695822,0.00016712,2]
[335276648,1724064654693,-500.0,0.00016712,2]
[335276649,1724064654704,-500.0,0.00016712,2]
[335276650,1724064654715,-500.0,0.00016712,2]
[335276651,1724064654725,-500.0,0.00016712,2]
[335276652,1724064654735,-500.0,0.00016712,2]
[335276653,1724064654750,-500.0,0.00016712,2]
[335276654,1724064654761,-3020.65,0.00016712,2]
[335276655,1724064654771,-500.0,0.00016712,2]
[335276656,1724064654781,-500.0,0.00016712,2]
[335276657,1724064654790,-2059.25,0.00016712,2]
[335276658,1724064654800,-6249.43,0.00016712,2]
[335276659,1724064654810,-1358.47,0.00016712,2]
[335276660,1724064654824,-1833.6,0.00016712,2]
[335276661,1724064654838,-500.0,0.00016712,2]
[335276662,1724064654847,-500.0,0.00016712,2]
[335276663,1724064654857,-500.0,0.00016712,2]
[335276664,1724064654866,-695.24,0.00016712,2]
[335276665,1724064654877,-500.0,0.00016712,2]
[335276666,1724064654888,-1406.0,0.00016712,2]
[335276667,1724064654901,-550.92253647,0.00016712,2]
[335276668,1724064654913,-506.41093348,0.00016712,2]
[335276669,1724064654924,-500.0,0.00016712,2]
[335276670,1724064654935,-1523.28,0.00016712,2]
[335276671,1724064654945,-521.48,0.00016712,2]
[335276672,1724064654955,-1476.87,0.00016712,2]
[335276673,1724064654964,-500.0,0.00016712,2]
[335276674,1724064654974,-151.0,0.00016712,2]
[335276675,1724064654984,-1022.040147,0.00016712,2]
[335276676,1724064654996,-151.0,0.00016712,2]
[335276677,1724064655006,-151.0,0.00016712,2]
[335276678,1724064655017,-500.0,0.00016712,2]
[335276679,1724064655027,-500.0,0.00016712,2]
[335276680,1724064655037,-1022.040147,0.00016712,2]
[335276681,1724064655047,-2266.85,0.00016712,2]
[335276682,1724064655058,-1022.040147,0.00016712,2]
[335276683,1724064655068,-500.0,0.00016712,2]
[335276684,1724064655078,-1022.040147,0.00016712,2]
[335276685,1724064655088,-1022.040147,0.00016712,2]
[335276686,1724064655098,-1022.040147,0.00016712,2]
[335276687,1724064655107,-500.0,0.00016712,2]
[335276688,1724064655117,-500.0,0.00016712,2]
[335276689,1724064655127,-500.0,0.00016712,2]
[335276690,1724064655138,-151.0,0.00016712,2]
[335276691,1724064655149,-151.0,0.00016712,2]
[335276692,1724064655160,-155.2458,0.00016712,2]
[335276693,1724064655171,-500.0,0.00016712,2]
[335276694,1724064655183,-1215.95,0.00016712,2]
[335276695,1724064655192,-500.0,0.00016712,2]
[335276696,1724064655203,-500.0,0.00016712,2]
[335276697,1724064655215,-734.72,0.00016712,2]
[335276698,1724064655227,-500.0,0.00016712,2]
[335276699,1724064655236,-500.0,0.00016712,2]
[335276700,1724064655247,-729.24,0.00016712,2]
[335276701,1724064655259,-2145.28,0.00016712,2]
[335276702,1724064655271,-151.0,0.00016712,2]
[335276703,1724064655281,-151.0,0.00016712,2]
[335276704,1724064655291,-151.0,0.00016712,2]
[335276705,1724064655302,-500.0,0.00016712,2]
[335276706,1724064655313,-500.0,0.00016712,2]
[335276707,1724064655325,-500.0,0.00016712,2]
[335276708,1724064655335,-1474.66,0.00016712,2]
[335276709,1724064655344,-500.0,0.00016712,2]
[335276710,1724064655353,-612.11,0.00016712,2]
[335276711,1724064655363,-501.86197635,0.00016712,2]
[335276712,1724064655372,-2313.4,0.00016712,2]
[335276713,1724064655382,-1177.26,0.00016712,2]
[335276714,1724064655391,-500.0,0.00016712,2]
[335276715,1724064655402,-500.0,0.00016712,2]
[335276716,1724064655412,-1601.505462,0.00016712,2]
[335276717,1724064655421,-573.54,0.00016712,2]
[335276718,1724064655430,-1601.505462,0.00016712,2]
[335276719,1724064655440,-1601.505462,0.00016712,2]
[335276720,1724064655449,-500.0,0.00016712,2]
[335276721,1724064655458,-500.0,0.00016712,2]
[335276722,1724064655468,-732.53853719,0.00016712,2]
[335276723,1724064655478,-1601.505462,0.00016712,2]
[335276724,1724064655487,-1601.505462,0.00016712,2]
[335276725,1724064655497,-500.0,0.00016712,2]
[335276726,1724064655507,-1601.505462,0.00016712,2]
[335276727,1724064655516,-560.41,0.00016712,2]
[335276728,1724064655526,-2216.78,0.00016712,2]
[335276729,1724064655535,-500.59192203,0.00016712,2]
[335276730,1724064655545,-500.0,0.00016712,2]
[335276731,1724064655554,-1514.7,0.00016712,2]
[335276732,1724064655563,-505.19155415,0.00016712,2]
[335276733,1724064655573,-835.68,0.00016712,2]
[335276734,1724064655584,-500.0,0.00016712,2]
[335276735,1724064655593,-500.0,0.00016712,2]
[335276736,1724064655603,-3105.81,0.00016712,2]
[335276737,1724064655613,-500.0,0.00016712,2]
[335276738,1724064655623,-151.0,0.00016712,2]
[335276739,1724064655632,-500.0,0.00016712,2]
[335276740,1724064655642,-154.619383,0.00016712,2]
[335276741,1724064655652,-500.0,0.00016712,2]
[335276742,1724064655661,-151.0,0.00016712,2]
[335276743,1724064655670,-595.88,0.00016712,2]
[335276744,1724064655679,-317.402066,0.00016712,2]
[335276745,1724064655689,-500.0,0.00016712,2]
[335276746,1724064655698,-317.402066,0.00016712,2]
[335276747,1724064655709,-317.402066,0.00016712,2]
[335276748,1724064655721,-1084.05,0.00016712,2]
[335276749,1724064655731,-500.0,0.00016712,2]
[335276750,1724064655744,-500.0,0.00016712,2]
[335276751,1724064655755,-317.402066,0.00016712,2]
[335276752,1724064655766,-317.402066,0.00016712,2]
[335276753,1724064655777,-317.402066,0.00016712,2]
[335276754,1724064655788,-3685.64,0.00016712,2]
[335276755,1724064655799,-500.0,0.00016712,2]
[335276756,1724064655809,-2913.53,0.00016712,2]
[335276757,1724064655821,-597.54,0.00016712,2]
[335276758,1724064655831,-500.0,0.00016712,2]
[335276759,1724064655842,-1064.67,0.00016712,2]
[335276760,1724064655852,-500.0,0.00016712,2]
[335276761,1724064655866,-1144.09,0.00016712,2]
[335276762,1724064655878,-500.0,0.00016712,2]
[335276763,1724064655888,-500.0,0.00016712,2]
[335276764,1724064655900,-500.0,0.00016712,2]
[335276765,1724064655911,-1364.06,0.00016712,2]
[335276766,1724064655924,-500.0,0.00016712,2]
[335276767,1724064655934,-500.0,0.00016712,2]
[335276768,1724064655943,-500.0,0.00016712,2]
[335276769,1724064656048,-668.34,0.00016712,2]
[335276770,1724064656066,-500.0,0.00016712,2]
[335276771,1724064656087,-200.0,0.00016773,2]
[335276772,1724064656097,-200.0,0.00016773,2]
[335276773,1724064656108,-200.0,0.00016773,2]
[335276774,1724064656120,-200.0,0.00016773,2]
[335276775,1724064656131,-170.1657903,0.00016773,2]
[335276776,1724064656142,-200.0,0.00016773,2]
[335276777,1724064656153,-357.01804545,0.000168,2]
[335276778,1724064656163,-967699.75403037,0.000168,2]
[335276779,1724064656174,-39890.2637175,0.000168,2]
[335276780,1724064656184,-150.112233,0.000168,2]
[335276781,1724064656194,-151.0,0.000168,2]
[335276782,1724064656203,-263.841394,0.000168,2]
[335276783,1724064656212,-263.841394,0.000168,2]
[335276784,1724064656223,-644.029277,0.000168,2]
[335276785,1724064656233,-644.029277,0.000168,2]
[335276786,1724064656243,-151.0,0.000168,2]
[335276787,1724064656253,-594.695822,0.000168,2]
[335276788,1724064656263,-594.695822,0.000168,2]
[335276789,1724064656273,-159.413865,0.000168,2]
[335276790,1724064656282,-1022.040147,0.000168,2]
[335276791,1724064656291,-1022.040147,0.000168,2]
[335276792,1724064656300,-151.0,0.000168,2]
[335276793,1724064656310,-1601.505462,0.000168,2]
[335276794,1724064656320,-1601.505462,0.000168,2]
[335276795,1724064656333,-317.402066,0.000168,2]
[335276796,1724064656344,-317.402066,0.000168,2]
[335276797,1724064656354,-479.11470783,0.000168,2]
[335276798,1724064656364,-500.0,0.00016877,2]
[335276799,1724064656378,-500.0,0.00016877,2]
[335276800,1724064656390,-500.0,0.00016877,2]
[335276801,1724064656400,-466.22591532,0.00016877,2]
[335276802,1724064656409,-500.0,0.00016877,2]
[335276803,1724064656419,-500.0,0.00016877,2]
[335276804,1724064656428,-500.0,0.00016877,2]
[335276805,1724064656438,-63553.0,0.0001688,2]
[335276806,1724064656447,-49042.58685059,0.00016985,2]
[335276807,1724064656457,-151.0,0.00016985,2]
[335276808,1724064656466,-263.841394,0.00016985,2]
[335276809,1724064656477,-263.841394,0.00016985,2]
[335276810,1724064656487,-644.029277,0.00016985,2]
[335276811,1724064656496,-644.029277,0.00016985,2]
[335276812,1724064656505,-151.0,0.00016985,2]
[335276813,1724064656515,-594.695822,0.00016985,2]
[335276814,1724064656524,-594.695822,0.00016985,2]
[335276815,1724064656534,-1022.040147,0.00016985,2]
[335276816,1724064656543,-1022.040147,0.00016985,2]
[335276817,1724064656553,-160.911688,0.00016985,2]
[335276818,1724064656562,-1601.505462,0.00016985,2]
[335276819,1724064656572,-1601.505462,0.00016985,2]
[335276820,1724064656585,-317.402066,0.00016985,2]
[335276821,1724064656594,-317.402066,0.00016985,2]
[335276822,1724064656603,-500.0,0.00016986,2]
[335276823,1724064656614,-999.1,0.00016986,2]
[335276824,1724064656623,-505.3158276,0.00016986,2]
[335276825,1724064656632,-500.0,0.00016986,2]
[335276826,1724064656642,-500.0,0.00016986,2]
[335276827,1724064656651,-635.16,0.00016986,2]
[335276828,1724064656660,-500.0,0.00016986,2]
[335276829,1724064656669,-243.84185168,0.00016986,2]
[335276830,1724064656679,-500.0,0.00016986,2]
[335276831,1724064656688,-591.86,0.00016986,2]
[335276832,1724064656699,-500.0,0.00016986,2]
[335276833,1724064656708,-500.0,0.00016986,2]
[335276834,1724064656718,-500.0,0.00016986,2]
[335276835,1724064656727,-500.0,0.00016986,2]
[335276836,1724064656736,-509.96370052,0.00016986,2]
[335276837,1724064656749,-500.0,0.00016986,2]
[335276838,1724064656758,-566.51,0.00016986,2]
[335276839,1724064656767,-618.2346421,0.00016986,2]
[335276840,1724064656777,-500.0,0.00016986,2]
[335276841,1724064656786,-497.50089015,0.00016986,2]
[335276842,1724064656796,-500.0,0.00016986,2]
[335276843,1724064656806,-500.0,0.00016986,2]
[335276844,1724064656815,-500.0,0.00016986,2]
[335276845,1724064656827,-500.0,0.00016986,2]
[335276846,1724064656836,-500.0,0.00016986,2]
[335276847,1724064656846,-500.0,0.00016986,2]
[335276848,1724064656855,-500.0,0.00016986,2]
[335276849,1724064656865,-500.0,0.00016986,2]
[335276850,1724064656875,-500.0,0.00016986,2]
[335276851,1724064656884,-500.0,0.00016986,2]
[335276852,1724064656893,-500.0,0.00016986,2]
[335276853,1724064656902,-500.0,0.00016986,2]
[335276854,1724064656912,-604.56,0.00016986,2]
[335276855,1724064656921,-500.0,0.00016986,2]
[335276856,1724064656930,-500.0,0.00016986,2]
[335276857,1724064656940,-500.0,0.00016986,2]
[335276858,1724064656950,-1036.27,0.00016986,2]
[335276859,1724064656961,-500.0,0.00016986,2]
[335276860,1724064656972,-876.01,0.00016986,2]
[335276861,1724064656982,-500.0,0.00016986,2]
[335276862,1724064656992,-920.14,0.00016986,2]
[335276863,1724064657002,-500.0,0.00016986,2]
[335276864,1724064657012,-924.92,0.00016986,2]
[335276865,1724064657022,-500.0,0.00016986,2]
[335276866,1724064657031,-500.0,0.00016986,2]
[335276867,1724064657041,-500.0,0.00016986,2]
[335276868,1724064657051,-500.0,0.00016986,2]
[335276869,1724064657061,-500.0,0.00016986,2]
[335276870,1724064657071,-884.77,0.00016986,2]
[335276871,1724064657083,-500.0,0.00016986,2]
[335276872,1724064657093,-1525.26,0.00016986,2]
[335276873,1724064657104,-500.0,0.00016986,2]
[335276874,1724064657113,-1240.07,0.00016986,2]
[335276875,1724064657123,-500.0,0.00016986,2]
[335276876,1724064657134,-500.0,0.00016986,2]
[335276877,1724064657146,-500.0,0.00016986,2]
[335276878,1724064657156,-531.9,0.00016986,2]
[335276879,1724064657168,-500.0,0.00016986,2]
[335276880,1724064657180,-500.0,0.00016986,2]
[335276881,1724064657192,-500.0,0.00016986,2]
[335276882,1724064657203,-670.44,0.00016986,2]
[335276883,1724064657214,-2085.01,0.00016986,2]
[335276884,1724064657223,-500.0,0.00016986,2]
[335276885,1724064657234,-151.0,0.00016986,2]
[335276886,1724064657246,-500.0,0.00016986,2]
[335276887,1724064657257,-500.0,0.00016986,2]
[335276888,1724064657267,-972.73,0.00016986,2]
[335276889,1724064657278,-608.01,0.00016986,2]
[335276890,1724064657289,-627.13,0.00016986,2]
[335276891,1724064657299,-549.6,0.00016986,2]
[335276892,1724064657310,-500.0,0.00016986,2]
[335276893,1724064657320,-571.47,0.00016986,2]
[335276894,1724064657333,-500.0,0.00016986,2]
[335276895,1724064657342,-500.0,0.00016986,2]
[335276896,1724064657352,-509.54,0.00016986,2]
[335276897,1724064657361,-500.0,0.00016986,2]
[335276898,1724064657371,-427.71557711,0.00016986,2]
[335276899,1724064657381,-1192.27,0.00016986,2]
[335276900,1724064657392,-500.0,0.00016986,2]
[335276901,1724064657403,-500.0,0.00016986,2]
[335276902,1724064657415,-500.0,0.00016986,2]
[335276903,1724064657425,-868.49,0.00016986,2]
[335276904,1724064657435,-500.0,0.00016986,2]
[335276905,1724064657446,-833.76,0.00016986,2]
[335276906,1724064657455,-500.0,0.00016986,2]
[335276907,1724064657465,-500.0,0.00016986,2]
[335276908,1724064657476,-541.44,0.00016986,2]
[335276909,1724064657487,-680.14,0.00016986,2]
[335276910,1724064657498,-677.35,0.00016986,2]
[335276911,1724064657510,-500.0,0.00016986,2]
[335276912,1724064657520,-1037.09,0.00016986,2]
[335276913,1724064657531,-500.0,0.00016986,2]
[335276914,1724064657540,-764.95,0.00016986,2]
[335276915,1724064657550,-500.0,0.00016986,2]
[335276916,1724064657561,-3205.11,0.00016986,2]
[335276917,1724064657573,-629.33,0.00016986,2]
[335276918,1724064657585,-500.0,0.00016986,2]
[335276919,1724064657595,-500.0,0.00016986,2]
[335276920,1724064657605,-500.0,0.00016986,2]
[335276921,1724064657616,-618.15,0.00016986,2]
[335276922,1724064657626,-500.0,0.00016986,2]
[335276923,1724064657636,-788.89,0.00016986,2]
[335276924,1724064657646,-501.1,0.00016986,2]
[335276925,1724064657656,-500.0,0.00016986,2]
[335276926,1724064657665,-500.0,0.00016986,2]
[335276927,1724064657675,-868.42,0.00016986,2]
[335276928,1724064657685,-500.0,0.00016986,2]
[335276929,1724064657694,-945.19,0.00016986,2]
[335276930,1724064657703,-500.0,0.00016986,2]
[335276931,1724064657713,-924.86,0.00016986,2]
[335276932,1724064657722,-500.0,0.00016986,2]
[335276933,1724064657731,-1050.73,0.00016986,2]
[335276934,1724064657741,-571.61,0.00016986,2]
[335276935,1724064657754,-673.9,0.00016986,2]
[335276936,1724064657763,-819.39,0.00016986,2]
[335276937,1724064657773,-500.0,0.00016986,2]
[335276938,1724064657782,-513.12,0.00016986,2]
[335276939,1724064657792,-500.0,0.00016986,2]
[335276940,1724064657802,-500.0,0.00016986,2]
[335276941,1724064657811,-500.0,0.00016986,2]
[335276942,1724064657827,-1257.31,0.00016986,2]
[335276943,1724064657837,-651.1,0.00016986,2]
[335276944,1724064657847,-500.0,0.00016986,2]
[335276945,1724064657856,-800.57,0.00016986,2]
[335276946,1724064657865,-500.0,0.00016986,2]
[335276947,1724064657874,-500.0,0.00016986,2]
[335276948,1724064657885,-643.17,0.00016986,2]
[335276949,1724064657895,-500.0,0.00016986,2]
[335276950,1724064657904,-500.0,0.00016986,2]
[335276951,1724064657913,-500.0,0.00016986,2]
[335276952,1724064657924,-891.67,0.00016986,2]
[335276953,1724064657933,-500.0,0.00016986,2]
[335276954,1724064657942,-500.0,0.00016986,2]
[335276955,1724064657951,-734.44,0.00016986,2]
[335276956,1724064657961,-500.0,0.00016986,2]
[335276957,1724064657970,-500.0,0.00016986,2]
[335276958,1724064657979,-596.48,0.00016986,2]
[335276959,1724064657989,-500.0,0.00016986,2]
[335276960,1724064657998,-991.23,0.00016986,2]
[335276961,1724064658008,-500.0,0.00016986,2]
[335276962,1724064658017,-975.86,0.00016986,2]
[335276963,1724064658027,-500.0,0.00016986,2]
[335276964,1724064658036,-500.0,0.00016986,2]
[335276965,1724064658046,-500.0,0.00016986,2]
[335276966,1724064658057,-1381.03,0.00016986,2]
[335276967,1724064658067,-500.0,0.00016986,2]
[335276968,1724064658080,-502.85,0.00016986,2]
[335276969,1724064658089,-452.59111018,0.00016986,2]
[335276970,1724064658099,-408.01088314,0.00016986,2]
[335276971,1724064658107,-500.0,0.00016986,2]
[335276972,1724064658117,-500.0,0.00016986,2]
[335276973,1724064658126,-530.34,0.00016986,2]
[335276974,1724064658136,-704.69,0.00016986,2]
[335276975,1724064658145,-883.26,0.00016986,2]
[335276976,1724064658155,-652.07,0.00016986,2]
[335276977,1724064658166,-613.05,0.00016986,2]
[335276978,1724064658176,-500.0,0.00016986,2]
[335276979,1724064658186,-500.0,0.00016986,2]
[335276980,1724064658198,-500.0,0.00016986,2]
[335276981,1724064658207,-644.74,0.00016986,2]
[335276982,1724064658316,-500.0,0.00016986,2]
[335276983,1724064658325,-500.0,0.00016986,2]
[335276984,1724064658335,-500.0,0.00016986,2]
[335276985,1724064658344,-500.0,0.00016986,2]
[335276986,1724064658353,-500.0,0.00016986,2]
[335276987,1724064658362,-500.0,0.00016986,2]
[335276988,1724064658373,-500.0,0.00016986,2]
[335276989,1724064658382,-500.0,0.00016986,2]
[335276990,1724064658392,-500.0,0.00016986,2]
[335276991,1724064658401,-627.32,0.00016986,2]
[335276992,1724064658410,-768.77,0.00016986,2]
[335276993,1724064658419,-500.0,0.00016986,2]
[335276994,1724064658428,-1030.7,0.00016986,2]
[335276995,1724064658438,-751.5,0.00016986,2]
[335276996,1724064658448,-500.0,0.00016986,2]
[335276997,1724064658458,-669.42,0.00016986,2]
[335276998,1724064658469,-563.42,0.00016986,2]
[335276999,1724064658479,-500.0,0.00016986,2]
[335277000,1724064658488,-524.52989176,0.00016986,2]
[335277001,1724064658500,-500.0,0.00016986,2]
[335277002,1724064658510,-563.05,0.00016986,2]
[335277003,1724064658520,-500.0,0.00016986,2]
[335277004,1724064658532,-500.0,0.00016986,2]
[335277005,1724064658543,-500.0,0.00016986,2]
[335277006,1724064658552,-500.0,0.00016986,2]
[335277007,1724064658563,-500.0,0.00016986,2]
[335277008,1724064658575,-495.81554571,0.00016986,2]
[335277009,1724064658585,-1159.42,0.00016986,2]
[335277010,1724064658594,-1058.32,0.00016986,2]
[335277011,1724064658603,-500.0,0.00016986,2]
[335277012,1724064658613,-500.0,0.00016986,2]
[335277013,1724064658622,-263.841394,0.00016986,2]
[335277014,1724064658632,-263.841394,0.00016986,2]
[335277015,1724064658642,-263.841394,0.00016986,2]
[335277016,1724064658651,-263.841394,0.00016986,2]
[335277017,1724064658661,-835.22,0.00016986,2]
[335277018,1724064658671,-1036.0,0.00016986,2]
[335277019,1724064658680,-500.0,0.00016986,2]
[335277020,1724064658690,-500.0,0.00016986,2]
[335277021,1724064658699,-500.0,0.00016986,2]
[335277022,1724064658709,-500.0,0.00016986,2]
[335277023,1724064658719,-1629.15,0.00016986,2]
[335277024,1724064658728,-874.96,0.00016986,2]
[335277025,1724064658738,-679.46,0.00016986,2]
[335277026,1724064658752,-714.72,0.00016986,2]
[335277027,1724064658762,-650.75,0.00016986,2]
[335277028,1724064658771,-2792.23,0.00016986,2]
[335277029,1724064658783,-500.0,0.00016986,2]
[335277030,1724064658792,-500.0,0.00016986,2]
[335277031,1724064658802,-1304.87,0.00016986,2]
[335277032,1724064658811,-685.38,0.00016986,2]
[335277033,1724064658821,-999.6,0.00016986,2]
[335277034,1724064658832,-500.0,0.00016986,2]
[335277035,1724064658842,-500.0,0.00016986,2]
[335277036,1724064658851,-547.37,0.00016986,2]
[335277037,1724064658861,-500.0,0.00016986,2]
[335277038,1724064658871,-625.23,0.00016986,2]
[335277039,1724064658880,-500.0,0.00016986,2]
[335277040,1724064658890,-500.0,0.00016986,2]
[335277041,1724064658900,-500.0,0.00016986,2]
[335277042,1724064658910,-500.0,0.00016986,2]
[335277043,1724064658921,-500.0,0.00016986,2]
[335277044,1724064658931,-1241.89,0.00016986,2]
[335277045,1724064658941,-545.07,0.00016986,2]
[335277046,1724064658951,-500.0,0.00016986,2]
[335277047,1724064658961,-500.0,0.00016986,2]
[335277048,1724064658971,-500.0,0.00016986,2]
[335277049,1724064658980,-500.0,0.00016986,2]
[335277050,1724064658990,-200.0,0.00016986,2]
[335277051,1724064659000,-500.0,0.00016986,2]
[335277052,1724064659010,-1810.25,0.00016986,2]
[335277053,1724064659019,-1177.66366881,0.00016986,10]
[335277054,1724064659029,-1703.86,0.00016986,2]
[335277055,1724064659040,-1465.02,0.00016986,2]
[335277056,1724064659050,-548.12,0.00016986,2]
[335277057,1724064659059,-500.0,0.00016986,2]
[335277058,1724064659069,-500.0,0.00016986,2]
[335277059,1724064659080,-500.0,0.00016986,2]
[335277060,1724064659089,-644.029277,0.00016986,2]
[335277061,1724064659099,-644.029277,0.00016986,2]
[335277062,1724064659108,-644.029277,0.00016986,2]
[335277063,1724064659118,-500.0,0.00016986,2]
[335277064,1724064659127,-644.029277,0.00016986,2]
[335277065,1724064659137,-810.71,0.00016986,2]
[335277066,1724064659147,-2823.37,0.00016986,2]
[335277067,1724064659156,-500.0,0.00016986,2]
[335277068,1724064659166,-500.0,0.00016986,2]
[335277069,1724064659176,-500.0,0.00016986,2]
[335277070,1724064659186,-500.0,0.00016986,2]
[335277071,1724064659196,-913.2,0.00016986,2]
[335277072,1724064659206,-500.0,0.00016986,2]
[335277073,1724064659215,-500.0,0.00016986,2]
[335277074,1724064659225,-1950.34,0.00016986,2]
[335277075,1724064659236,-613.04433675,0.00016986,2]
[335277076,1724064659246,-1677.1,0.00016986,2]
[335277077,1724064659255,-766.64,0.00016986,2]
[335277078,1724064659264,-611.4,0.00016986,2]
[335277079,1724064659274,-500.0,0.00016986,2]
[335277080,1724064659284,-628.62,0.00016986,2]
[335277081,1724064659294,-531.03,0.00016986,2]
[335277082,1724064659303,-500.0,0.00016986,2]
[335277083,1724064659312,-500.0,0.00016986,2]
[335277084,1724064659322,-1530.73,0.00016986,2]
[335277085,1724064659332,-754.52,0.00016986,2]
[335277086,1724064659341,-575.88,0.00016986,2]
[335277087,1724064659352,-322.23644989,0.00016986,2]
[335277088,1724064659362,-955.98,0.00016986,2]
[335277089,1724064659371,-500.0,0.00016986,2]
[335277090,1724064659381,-500.0,0.00016986,2]
[335277091,1724064659391,-574.44,0.00016986,2]
[335277092,1724064659400,-731.1,0.00016986,2]
[335277093,1724064659410,-244.919126,0.00016986,2]
[335277094,1724064659419,-500.0,0.00016986,2]
[335277095,1724064659428,-6498.62,0.00016986,2]
[335277096,1724064659438,-500.0,0.00016986,2]
[335277097,1724064659448,-500.0,0.00016986,2]
[335277098,1724064659459,-6412.2,0.00016986,2]
[335277099,1724064659469,-500.0,0.00016986,2]
[335277100,1724064659478,-500.0,0.00016986,2]
[335277101,1724064659488,-500.0,0.00016986,2]
[335277102,1724064659498,-1017.23,0.00016986,2]
[335277103,1724064659507,-500.0,0.00016986,2]
[335277104,1724064659517,-500.0,0.00016986,2]
[335277105,1724064659527,-1833.35,0.00016986,2]
[335277106,1724064659537,-500.0,0.00016986,2]
[335277107,1724064659547,-551.2,0.00016986,2]
[335277108,1724064659556,-500.0,0.00016986,2]
[335277109,1724064659566,-500.0,0.00016986,2]
[335277110,1724064659576,-500.0,0.00016986,2]
[335277111,1724064659587,-866.32,0.00016986,2]
[335277112,1724064659596,-1076.73,0.00016986,2]
[335277113,1724064659605,-1738.28,0.00016986,2]
[335277114,1724064659615,-552.95,0.00016986,2]
[335277115,1724064659624,-591.99,0.00016986,2]
[335277116,1724064659634,-556.23,0.00016986,2]
[335277117,1724064659644,-1070.93,0.00016986,2]
[335277118,1724064659654,-500.0,0.00016986,2]
[335277119,1724064659663,-500.0,0.00016986,2]
[335277120,1724064659672,-500.0,0.00016986,2]
[335277121,1724064659681,-1404.09,0.00016986,2]
[335277122,1724064659690,-527.24,0.00016986,2]
[335277123,1724064659699,-500.0,0.00016986,2]
[335277124,1724064659709,-549.76,0.00016986,2]
[335277125,1724064659718,-4166.87,0.00016986,2]
[335277126,1724064659728,-500.0,0.00016986,2]
[335277127,1724064659737,-952.17,0.00016986,2]
[335277128,1724064659749,-523.47,0.00016986,2]
[335277129,1724064659758,-19615.05,0.00016986,2]
[335277130,1724064659767,-500.0,0.00016986,2]
[335277131,1724064659776,-500.0,0.00016986,2]
[335277132,1724064659787,-500.0,0.00016986,2]
[335277133,1724064659796,-594.695822,0.00016986,2]
[335277134,1724064659805,-1409.16,0.00016986,2]
[335277135,1724064659814,-967.54,0.00016986,2]
[335277136,1724064659826,-5418.3,0.00016986,2]
[335277137,1724064659837,-500.0,0.00016986,2]